bitfinex/quotes_ETHUSD_20250726
["timestamp","ask_amount","ask_price","bid_price","bid_amount"]
[1753561108312,11.31842617,3744.3,3744.2,0.001]
[1753561108943,11.31842617,3744.3,3742.2,2.67216138]
[1753561108944,2.67136827,3743.4,3743.3,0.443]
[1753561109146,9.71536827,3743.4,3743.3,0.443]
[1753561109310,9.84896827,3743.4,3743.3,0.443]
[1753561109513,3.0,3743.3,3743.0,0.443]
[1753561109717,4.1796,3743.2,3743.1,0.443]
[1753561110118,4.1796,3743.2,3742.7,0.1336]
[1753561110317,2.8052596,3743.0,3742.8,0.443]
[1753561110552,2.8052596,3743.0,3742.5,0.1336]
[1753561110553,4.046,3742.9,3742.5,0.1336]
[1753561110707,6.71777339,3742.9,3742.5,0.1336]
[1753561111044,2.67179916,3742.8,3742.5,0.1336]
[1753561111259,4.047,3742.7,3742.6,0.443]
[1753561111557,4.047,3742.7,3742.5,0.1336]
[1753561112046,4.047,3742.7,3742.6,0.443]
[1753561113022,4.047,3742.7,3742.6,0.76787499]
[1753561113241,4.047,3742.7,3742.6,0.443]
[1753561113919,3.0,3743.5,3742.8,2.67178097]
[1753561114124,0.1336,3743.6,3743.1,0.1336]
[1753561114363,4.048,3743.5,3743.4,0.1336]
[1753561114717,0.1336,3744.0,3743.4,3.24791558]
[1753561114918,4.049,3743.9,3743.5,1.03494143]
[1753561115134,4.049,3743.9,3743.6,0.443]
[1753561115336,4.049,3743.9,3743.7,0.443]
[1753561115561,7.049,3743.9,3743.8,0.443]
[1753561116431,3.0,3743.9,3743.8,0.443]
[1753561116831,7.048,3743.9,3743.8,0.443]
[1753561117248,7.048,3743.9,3743.4,0.1336]
[1753561117420,9.71906343,3743.9,3743.5,0.443]
[1753561117625,0.1336,3743.8,3743.6,0.443]
[1753561117865,4.05,3743.7,3743.1,2.83189511]
[1753561118165,4.05,3743.7,3743.4,0.443]
[1753561118673,4.05,3743.7,3743.2,0.28318951]
[1753561118880,4.05,3743.6,3743.5,0.443]
[1753561120269,4.049,3743.6,3743.5,3.2478447]
[1753561120464,4.049,3743.6,3743.5,3.87076278]
[1753561120967,3.0,3744.6,3743.9,2.67100167]
[1753561121121,4.1836,3744.5,3743.7,0.02671154]
[1753561121326,4.1836,3744.5,3744.0,0.443]
[1753561121528,4.1836,3744.5,3744.1,0.443]
[1753561121754,4.1836,3744.5,3744.2,0.443]
[1753561122128,0.1336,3744.5,3744.2,0.443]
[1753561122334,4.05,3744.4,3744.2,0.443]
[1753561122665,3.0,3744.3,3744.2,0.443]
[1753561122957,4.05,3744.3,3744.2,0.443]
[1753561123160,4.05,3744.3,3743.9,0.565]
[1753561123161,3.0,3744.2,3743.9,0.565]
[1753561123459,3.0,3744.2,3743.9,0.1336]
[1753561125454,4.05,3744.1,3743.9,0.1336]
[1753561129287,3.0,3744.4,3744.0,0.4314]
[1753561129491,4.048,3744.3,3744.1,0.4314]
[1753561129687,4.048,3744.2,3744.1,0.4314]
[1753561129869,4.048,3744.2,3744.1,0.1336]
[1753561130857,7.1493975,3744.2,3743.5,3.29420182]
[1753561131158,7.1493975,3744.2,3742.7,3.69297606]
[1753561131159,2.67086883,3744.1,3743.0,0.4314]
[1753561131356,4.4786,3744.0,3743.6,0.1336]
[1753561131556,7.14955931,3744.0,3743.6,0.1336]
[1753561132367,6.71895931,3744.0,3743.6,0.1336]
[1753561132565,0.4306,3743.9,3743.6,0.1336]
[1753561132862,4.049,3743.8,3743.6,0.1336]
[1753561133066,0.4306,3743.7,3743.6,0.1336]
[1753561135968,4.049,3743.8,3743.6,0.1336]
[1753561138295,0.1336,3744.1,3743.6,2.80476649]
[1753561138494,4.047,3744.0,3743.7,3.10254927]
[1753561138695,3.1336,3744.2,3743.7,2.67114927]
[1753561138991,4.047,3744.1,3743.8,0.45811082]
[1753561139194,4.047,3744.1,3743.9,0.1336]
[1753561139512,4.047,3744.1,3743.9,0.565]
[1753561139912,4.047,3744.1,3743.9,0.1336]
[1753561141672,4.4776,3744.1,3743.9,0.1336]
[1753561141911,0.4306,3744.0,3743.9,0.1336]
[1753561144607,4.047,3744.1,3743.9,0.1336]
[1753561144777,0.4306,3744.0,3743.9,0.1336]
[1753561145113,4.047,3744.1,3743.9,0.1336]
[1753561145294,4.4776,3744.1,3743.9,0.1336]
[1753561146200,0.4306,3744.1,3743.9,0.1336]
[1753561146407,4.046,3744.0,3743.9,0.1336]
[1753561146593,4.045,3744.0,3743.9,0.1336]
[1753561147315,3.71680331,3744.5,3743.9,2.80457146]
[1753561147316,3.1336,3744.5,3743.9,2.80457146]
[1753561147615,4.045,3744.4,3743.9,3.23597146]
[1753561147822,4.045,3744.4,3743.9,0.565]
[1753561148126,6.715657,3744.4,3743.9,0.565]
[1753561148326,4.4756,3744.4,3743.9,0.1336]
[1753561148626,4.045,3744.3,3743.9,0.1336]
[1753561148797,4.045,3744.3,3744.0,0.4314]
[1753561149123,4.045,3744.3,3743.9,2.8045934]
[1753561150215,4.4756,3744.3,3743.9,0.1336]
[1753561152742,4.044,3744.2,3743.9,0.5943]
[1753561153014,4.044,3744.2,3744.0,0.4607]
[1753561153214,4.044,3744.1,3743.7,3.69297606]
[1753561153439,0.4616,3744.8,3744.4,0.1336]
[1753561153617,4.044,3744.7,3744.3,2.67071652]
[1753561153793,4.044,3744.7,3744.3,3.13141652]
[1753561153996,4.044,3744.7,3744.4,0.1336]
[1753561156234,4.043,3744.6,3744.4,2.8042163]
[1753561156527,0.4616,3745.3,3744.4,0.59624888]
[1753561156745,4.043,3745.2,3744.6,2.67046126]
[1753561157033,0.1336,3745.4,3744.8,0.1336]
[1753561157223,6.415,3745.5,3744.8,2.6703659]
[1753561157427,4.047,3745.3,3745.1,2.67014873]
[1753561157937,6.415,3745.5,3745.2,2.67005047]
[1753561158135,4.047,3745.4,3745.2,2.67005047]
[1753561158348,4.047,3745.4,3745.0,2.80380752]
[1753561158349,4.047,3745.4,3745.0,0.1336]
[1753561158640,0.4616,3745.3,3745.0,0.1336]
[1753561158996,0.4726,3745.2,3744.6,2.67045433]
[1753561159347,4.5086,3745.1,3744.7,0.1336]
[1753561159642,2.67039007,3744.8,3744.1,2.67086402]
[1753561159817,4.048,3744.7,3744.4,0.1336]
[1753561160148,0.9342,3744.6,3744.4,0.1336]
[1753561160500,0.4616,3744.5,3744.4,0.1336]
[1753561161124,0.9342,3744.5,3744.3,0.1336]
[1753561161437,4.5196,3744.4,3744.3,0.1336]
[1753561161794,4.9812,3744.4,3744.3,0.1336]
[1753561164755,2.67074874,3744.3,3743.6,2.67120114]
[1753561165044,4.9812,3744.4,3743.4,0.4607]
[1753561165045,4.047,3744.2,3743.7,0.31319011]
[1753561165341,4.5086,3744.2,3743.9,0.1336]
[1753561165554,4.047,3744.2,3743.9,0.1336]
[1753561165752,0.4616,3744.1,3743.9,0.1336]
[1753561166047,4.047,3744.0,3743.9,0.1336]
[1753561170552,4.047,3744.0,3743.9,2.80461151]
[1753561171363,0.4616,3744.3,3744.0,2.67094017]
[1753561171666,4.046,3744.2,3743.9,2.80460274]
[1753561172334,4.046,3744.2,3744.0,2.67093764]
[1753561172540,4.046,3744.2,3743.9,2.80458924]
[1753561172953,4.046,3744.2,3743.9,0.1336]
[1753561173318,4.5076,3744.2,3743.9,0.1336]
[1753561173851,4.5186,3744.2,3743.9,0.1336]
[1753561174049,0.4616,3744.1,3743.9,0.1336]
[1753561175358,4.045,3744.0,3743.9,0.1336]
[1753561177152,4.5066,3744.0,3743.9,0.1336]
[1753561178031,4.9792,3744.0,3743.6,0.1336]
[1753561178232,0.4616,3743.9,3743.6,0.1336]
[1753561178542,4.9792,3743.8,3743.6,0.1336]
[1753561178747,7.65032322,3743.8,3743.6,0.1336]
[1753561178939,7.18872322,3743.8,3743.6,0.1336]
[1753561179140,0.4616,3743.7,3743.6,0.1336]
[1753561179455,0.7849,3743.6,3743.3,0.1336]
[1753561179761,4.5066,3743.5,3743.3,0.1336]
[1753561180059,0.4616,3743.4,3743.3,0.1336]
[1753561182559,0.9496,3743.4,3743.3,0.1336]
[1753561182759,0.9496,3743.4,3742.6,0.4617]
[1753561182760,0.9496,3743.4,3743.0,0.1336]
[1753561182960,4.4921,3743.3,3743.0,0.1336]
[1753561183268,0.4461,3743.2,3743.0,0.1336]
[1753561183500,4.046,3743.1,3743.0,0.1336]
[1753561184468,4.046,3743.1,3742.7,2.67184928]
[1753561184644,4.046,3743.1,3742.8,0.1336]
[1753561185490,4.046,3743.1,3742.8,2.80537986]
[1753561185697,4.046,3743.1,3743.0,2.67165375]
[1753561185867,4.046,3743.1,3743.0,2.80525375]
[1753561186192,1.2246,3743.9,3743.1,2.67158237]
[1753561186392,0.1336,3743.8,3743.3,0.1336]
[1753561186690,4.047,3743.7,3743.5,0.1336]
[1753561187891,4.4931,3743.7,3743.5,0.1336]
[1753561188273,4.047,3743.7,3743.5,0.1336]
[1753561189987,4.047,3743.7,3743.5,2.80489189]
[1753561190186,4.047,3743.7,3743.5,0.1336]
[1753561191991,4.047,3743.7,3743.5,2.80489455]
[1753561192286,4.046,3743.6,3743.5,0.1336]
[1753561193289,4.045,3743.6,3743.5,0.1336]
[1753561193514,4.045,3743.6,3743.5,2.80489691]
[1753561193660,4.045,3743.6,3743.5,0.1336]
[1753561194302,4.533,3743.6,3743.5,0.1336]
[1753561194475,4.9791,3743.6,3743.5,0.1336]
[1753561197194,4.533,3743.6,3743.5,0.1336]
[1753561197392,4.9791,3743.6,3743.5,0.1336]
[1753561197693,4.533,3743.6,3743.5,0.1336]
[1753561199062,4.9791,3743.6,3743.4,0.1336]
[1753561199389,0.488,3743.5,3743.4,0.1336]
[1753561200613,4.045,3743.6,3743.4,0.1336]
[1753561200826,0.7905,3744.5,3743.5,0.02671296]
[1753561200991,11.0848321,3744.5,3743.7,2.67110493]
[1753561201320,11.0848321,3744.5,3743.6,0.02671225]
[1753561201321,0.9341,3744.4,3744.0,0.1336]
[1753561201501,10.6387321,3744.5,3744.0,0.1336]
[1753561201679,0.9341,3744.3,3744.0,0.1336]
[1753561201880,4.047,3744.2,3744.0,0.1336]
[1753561202277,0.488,3744.1,3744.0,0.1336]
[1753561202575,0.488,3744.1,3744.0,2.80454017]
[1753561203119,4.047,3744.2,3744.0,0.1336]
[1753561203481,4.535,3744.2,3744.0,0.1336]
[1753561205110,4.046,3744.1,3744.0,0.1336]
[1753561205875,4.046,3744.1,3744.0,2.80454017]
[1753561206316,0.002,3744.3,3744.0,0.1336]
[1753561206625,4.046,3744.2,3744.1,3.09906883]
[1753561206972,0.002,3744.3,3744.2,2.6707975]
[1753561207173,0.002,3744.3,3744.2,3.0989975]
[1753561207412,4.049,3744.3,3744.2,3.3482975]
[1753561207603,0.002,3744.3,3744.2,3.3482975]
[1753561207790,4.049,3744.3,3744.2,3.99028412]
[1753561207991,4.049,3744.3,3744.2,3.71427615]
[1753561208192,4.049,3744.3,3744.2,3.28607615]
[1753561210516,0.002,3744.3,3744.2,3.28607615]
[1753561210715,4.048,3744.3,3744.2,3.74098412]
[1753561210881,4.048,3744.3,3744.2,3.96357615]
[1753561211283,0.002,3744.3,3744.2,3.96357615]
[1753561211576,0.002,3744.3,3744.2,3.99028412]
[1753561211780,0.002,3744.3,3744.2,3.96357615]
[1753561212419,0.002,3744.3,3744.2,3.71427615]
[1753561214012,0.002,3744.3,3744.2,3.28607615]
[1753561214801,0.471,3744.3,3744.2,3.28607615]
[1753561215136,0.911,3744.3,3744.2,2.6707975]
[1753561215738,0.471,3744.3,3744.2,2.6707975]
[1753561218634,0.471,3744.3,3744.1,0.1336]
[1753561218931,0.911,3744.3,3744.1,0.1336]
[1753561219295,0.909,3744.2,3744.1,0.1336]
[1753561219730,1.6991,3744.2,3744.1,0.1336]
[1753561224039,5.7441,3744.2,3744.1,0.1336]
[1753561224336,5.7441,3744.2,3743.7,2.6711428]
[1753561224538,5.7441,3744.2,3743.4,0.54765494]
[1753561224539,0.909,3744.1,3744.0,0.1336]
[1753561226811,0.469,3744.1,3744.0,0.1336]
[1753561227357,0.002,3744.3,3744.2,2.6707975]
[1753561227646,0.002,3744.3,3744.2,3.3518975]
[1753561227846,0.002,3744.3,3744.2,3.4854975]
[1753561228039,0.002,3744.3,3744.2,3.2361975]
[1753561228244,0.002,3744.3,3744.2,3.85762833]
[1753561230725,0.002,3744.3,3744.2,3.42582833]
[1753561240719,0.471,3744.3,3744.2,3.42582833]
[1753561240920,0.911,3744.3,3744.2,0.75503083]
[1753561241129,0.911,3744.3,3744.2,0.1336]
[1753561242955,0.911,3744.3,3744.2,2.8043975]
[1753561243161,0.911,3744.3,3744.2,0.1336]
[1753561244453,0.471,3744.3,3744.2,0.1336]
[1753561246253,0.9391,3744.3,3744.2,0.1336]
[1753561251462,0.9391,3744.3,3744.2,2.8043975]
[1753561252361,0.4961,3744.3,3744.2,0.1336]
[1753561252961,0.9391,3744.3,3744.2,0.1336]
[1753561253330,0.4961,3744.3,3744.2,0.1336]
[1753561253531,1.7602,3744.3,3744.2,0.1336]
[1753561254161,5.8002,3744.3,3744.2,0.1336]
[1753561259659,8.47092617,3744.3,3744.2,0.1336]
[1753561262489,5.8002,3744.3,3744.2,0.1336]
[1753561263240,5.7992,3744.3,3744.2,0.1336]
[1753561264163,1.7602,3744.3,3744.2,0.1336]
[1753561264362,5.7992,3744.3,3744.2,0.1336]
[1753561268049,8.46992617,3744.3,3744.2,0.1336]
[1753561268778,5.7992,3744.3,3744.2,0.1336]
[1753561269077,1.3172,3744.3,3744.2,0.1336]
[1753561269250,4.041,3744.3,3744.2,0.1336]
[1753561269456,4.5351,3744.3,3744.2,0.1336]
[1753561270370,7.20582617,3744.3,3744.2,0.1336]
[1753561274287,7.65562617,3744.3,3744.2,0.1336]
[1753561279787,3.61662617,3744.3,3744.2,0.1336]
[1753561279951,7.65562617,3744.3,3744.2,0.1336]
[1753561283562,7.65562617,3744.3,3743.5,3.28851949]
[1753561283563,2.67110184,3743.8,3743.2,6.85751949]
[1753561283858,2.67123075,3743.6,3743.3,1.15675195]
[1753561284063,7.17720482,3743.5,3743.0,0.471]
[1753561284277,4.039,3743.4,3743.0,0.471]
[1753561284503,7.17727904,3743.4,3743.0,0.471]
[1753561284793,6.71036827,3743.4,3743.3,0.1336]
[1753561285259,7.17726827,3743.4,3743.3,0.1336]
[1753561285696,7.62706827,3743.4,3743.3,0.1336]
[1753561286109,7.62706827,3743.4,3742.6,0.001]
[1753561286110,5.7801,3743.4,3742.6,0.001]
[1753561286266,2.6717325,3742.9,3742.6,0.001]
[1753561286465,4.039,3742.8,3742.6,0.001]
[1753561286766,4.5059,3742.8,3742.6,0.001]
[1753561287079,4.5059,3742.8,3742.7,0.1336]
[1753561288382,0.4669,3743.1,3742.7,0.6046]
[1753561288596,4.039,3743.0,3742.8,0.02671796]
[1753561288802,4.039,3743.0,3742.7,0.471]
[1753561288965,6.71066062,3743.0,3742.9,0.1336]
[1753561289162,7.17756062,3743.0,3742.9,0.1336]
[1753561293302,7.17755375,3743.0,3742.9,0.1336]
[1753561293594,7.62735375,3743.0,3742.9,0.1336]
[1753561297667,8.43485375,3743.0,3742.9,0.1336]
[1753561299664,7.98505375,3743.0,3742.9,0.1336]
[1753561300603,8.43485375,3743.0,3742.9,0.1336]
[1753561302572,7.98505375,3743.0,3742.9,0.1336]
[1753561303679,8.44905375,3743.0,3742.9,0.1336]
[1753561306205,0.4669,3743.0,3742.9,0.1336]
[1753561306509,4.5069,3743.0,3742.9,0.1336]
[1753561307405,6.71165375,3743.0,3742.9,0.1336]
[1753561308177,7.17585375,3743.0,3742.9,0.1336]
[1753561311723,9.08639137,3743.0,3742.9,0.1336]
[1753561312019,2.6718679,3742.7,3742.6,0.001]
[1753561312194,7.4997679,3742.7,3742.6,0.001]
[1753561312395,8.4279679,3742.7,3742.6,0.001]
[1753561318220,7.9639679,3742.7,3742.6,0.001]
[1753561320036,8.4279679,3742.7,3742.6,0.001]
[1753561321462,7.9639679,3742.7,3742.6,0.001]
[1753561324657,8.4279679,3742.7,3742.6,0.001]
[1753561328460,0.002,3743.0,3742.6,0.001]
[1753561328761,4.04,3742.9,3742.7,0.4367]
[1753561329955,0.002,3743.0,3742.6,0.5047487]
[1753561330141,0.002,3743.0,3742.9,2.67172513]
[1753561330340,0.002,3743.0,3742.9,6.39892933]
[1753561330658,0.002,3743.0,3742.9,7.05821208]
[1753561330833,0.002,3743.0,3742.9,8.0816946]
[1753561332567,0.002,3743.0,3742.9,11.0816946]
[1753561333672,0.002,3743.8,3743.7,2.6711542]
[1753561334155,0.002,3743.8,3743.7,3.4819542]
[1753561334750,0.002,3743.8,3743.7,3.2326542]
[1753561334957,0.002,3743.8,3743.7,4.19309296]
[1753561336952,0.002,3743.8,3743.7,3.76519296]
[1753561344369,0.002,3743.8,3743.7,3.7919045]
[1753561346056,0.002,3743.8,3743.7,3.76519296]
[1753561347362,0.4737,3743.8,3743.7,3.76519296]
[1753561347926,0.002,3743.8,3743.7,3.76519296]
[1753561349235,0.4737,3743.8,3743.7,3.76519296]
[1753561349571,0.4737,3743.8,3743.7,2.8047542]
[1753561350570,0.002,3743.8,3743.7,2.8047542]
[1753561350756,0.4737,3743.8,3743.7,2.8047542]
[1753561351845,0.002,3743.8,3743.7,2.8047542]
[1753561353778,0.002,3743.8,3743.7,2.83146574]
[1753561353942,0.002,3743.8,3743.7,4.58358565]
[1753561354142,0.002,3743.8,3743.7,4.83288565]
[1753561354343,0.002,3743.8,3743.7,8.87088565]
[1753561354674,0.002,3743.8,3743.7,8.84417411]
[1753561355281,0.002,3743.8,3743.7,11.84417411]
[1753561356793,0.002,3743.8,3743.7,11.59487411]
[1753561363090,0.002,3743.8,3743.7,11.16697411]
[1753561368156,0.002,3743.8,3743.7,7.12897411]
[1753561368362,0.4736,3743.8,3743.7,11.16597411]
[1753561375910,0.4736,3743.8,3743.7,7.12897411]
[1753561377288,0.002,3743.8,3743.7,7.12897411]
[1753561378190,0.002,3743.8,3743.7,11.16597411]
[1753561379011,0.9444,3743.8,3743.7,4.12897411]
[1753561379197,0.002,3743.8,3743.7,6.86846574]
[1753561379508,0.002,3743.8,3743.7,6.8417542]
[1753561382929,0.8344,3743.8,3743.7,2.8047542]
[1753561383214,1.7768,3743.8,3743.7,2.8047542]
[1753561383885,1.7768,3743.8,3743.7,0.1336]
[1753561384793,1.7768,3743.8,3743.7,2.8047542]
[1753561385190,1.7768,3743.8,3743.7,0.1336]
[1753561386621,1.7768,3743.8,3743.7,2.8047542]
[1753561408546,1.306,3743.8,3743.7,2.8047542]
[1753561408847,0.4736,3743.8,3743.7,2.8047542]
[1753561414359,0.002,3743.8,3743.7,4.06614188]
[1753561418048,0.002,3743.8,3743.7,3.81684188]
[1753561419557,0.002,3743.8,3743.7,3.38174188]
[1753561419730,0.002,3743.8,3743.7,4.06614188]
[1753561419930,1e-08,3743.8,3743.7,7.61614188]
[1753561420137,1e-08,3743.8,3743.7,7.58943034]
[1753561427130,0.002,3744.6,3743.7,7.58943034]
[1753561427335,0.002,3745.0,3744.9,2.67029827]
[1753561427536,0.002,3745.0,3744.9,6.73300125]
[1753561427734,0.002,3745.0,3744.9,7.30099827]
[1753561428358,0.002,3745.3,3745.0,3.22022696]
[1753561428564,0.002,3745.3,3745.1,8.83596808]
[1753561428747,0.002,3745.3,3745.2,2.83038521]
[1753561429754,0.4936,3745.3,3745.2,2.83038521]
[1753561430069,0.4936,3745.3,3745.2,2.80368437]
[1753561432561,0.4936,3745.7,3745.6,2.66979923]
[1753561432736,0.002,3745.7,3745.6,10.82929115]
[1753561432943,0.002,3745.7,3745.6,10.80259316]
[1753561435374,0.002,3745.8,3745.7,6.21972795]
[1753561435573,1e-08,3745.8,3745.7,9.02108909]
[1753561435954,1e-08,3745.8,3745.7,9.27038909]
[1753561436836,1e-08,3745.8,3745.7,9.02108909]
[1753561437037,0.1336,3747.8,3745.8,3.7655]
[1753561437276,7.18,3749.0,3747.0,2.6688017]
[1753561437443,2.66782541,3748.4,3747.0,6.7038017]
[1753561437644,2.66795015,3748.2,3747.0,6.7038017]
[1753561437968,0.9408,3747.1,3747.0,6.7038017]
[1753561439871,0.9408,3747.1,3746.3,2.66925542]
[1753561440072,0.8061,3747.1,3747.0,2.6688017]
[1753561440773,1.7449,3747.1,3747.0,2.6688017]
[1753561443082,1.7449,3747.1,3746.1,3.7816]
[1753561443281,0.8061,3747.1,3747.0,2.6688017]
[1753561443664,0.8061,3747.1,3746.9,2.66885952]
[1753561443859,0.9388,3747.0,3746.2,0.98076695]
[1753561444064,0.8061,3747.1,3746.9,2.66887293]
[1753561444681,0.9388,3747.0,3746.7,2.66894673]
[1753561444882,0.8061,3747.1,3746.8,2.66892987]
[1753561445073,0.9388,3746.9,3746.8,2.66892987]
[1753561445484,0.9388,3746.9,3746.7,2.66899707]
[1753561445689,0.9388,3746.8,3746.7,2.66899707]
[1753561447200,0.9388,3746.8,3746.7,2.80259707]
[1753561460560,0.4916,3746.8,3746.7,2.80259707]
[1753561462199,0.9455,3746.8,3746.7,2.80259707]
[1753561462393,0.9455,3746.8,3746.7,0.1336]
[1753561463170,0.9455,3746.8,3746.7,2.8026154]
[1753561466712,0.9455,3746.8,3746.7,0.1336]
[1753561467275,1.6999,3746.8,3746.7,0.1336]
[1753561469103,1.6999,3746.8,3746.6,0.1346]
[1753561469315,0.7544,3746.8,3746.6,0.1346]
[1753561469615,0.9514,3746.7,3746.6,0.1346]
[1753561474423,3.6204154,3746.7,3746.6,0.1346]
[1753561474628,4.5621154,3746.7,3746.6,0.001]
[1753561480920,8.5951154,3746.7,3746.6,0.001]
[1753561482287,11.5951154,3746.7,3746.6,1e-08]
[1753561482486,49.3251154,3746.7,3746.6,1e-08]
[1753561486604,19.2707154,3746.7,3746.6,1e-08]
[1753561489427,19.2797154,3746.7,3746.6,1e-08]
[1753561495637,19.52893072,3746.7,3746.6,1e-08]
[1753561499210,15.03613072,3746.7,3746.6,1e-08]
[1753561499401,19.07713072,3746.7,3746.6,1e-08]
[1753561499807,19.52693072,3746.7,3746.6,1e-08]
[1753561506464,19.07713072,3746.7,3746.6,1e-08]
[1753561506668,15.03613072,3746.7,3746.6,1e-08]
[1753561506968,14.0226154,3746.7,3746.6,0.68390001]
[1753561507172,17.0226154,3746.7,3746.6,0.68390001]
[1753561507471,14.0226154,3746.7,3746.6,0.68390001]
[1753561507676,14.0246154,3746.7,3746.6,0.68390001]
[1753561507961,17.0246154,3746.7,3746.6,0.68390001]
[1753561509070,17.0246154,3746.7,3746.6,0.43460001]
[1753561509755,17.0246154,3746.7,3746.6,0.68390001]
[1753561510772,17.0246154,3746.7,3746.6,1e-08]
[1753561510980,17.5145154,3746.7,3746.6,1e-08]
[1753561518341,18.0397154,3746.7,3746.6,1e-08]
[1753561518672,19.2652154,3746.7,3746.6,1e-08]
[1753561519241,12.9846154,3746.7,3746.6,1e-08]
[1753561519443,10.3156,3746.7,3746.6,0.45490001]
[1753561519643,14.3546,3746.7,3746.6,0.70420001]
[1753561520160,17.0236154,3746.7,3746.6,0.70420001]
[1753561521148,12.9846154,3746.7,3746.6,0.45490001]
[1753561521348,17.0236154,3746.7,3746.6,0.45490001]
[1753561521749,17.0236154,3746.7,3746.6,1e-08]
[1753561525390,14.3546,3746.7,3746.6,0.45490001]
[1753561527289,17.0216154,3746.7,3746.6,0.45490001]
[1753561528156,14.3526,3746.7,3746.6,0.45490001]
[1753561529187,14.3526,3746.7,3746.6,1e-08]
[1753561529389,17.0216154,3746.7,3746.6,1e-08]
[1753561529701,18.3606154,3746.7,3746.6,1e-08]
[1753561530177,49.50029273,3746.7,3746.6,1e-08]
[1753561530653,49.1733154,3746.7,3746.6,1e-08]
[1753561530858,49.28484398,3746.7,3746.6,1e-08]
[1753561531089,49.53460138,3746.7,3746.6,1e-08]
[1753561531463,49.28484398,3746.7,3746.6,1e-08]
[1753561531779,49.53457188,3746.7,3746.6,1e-08]
[1753561533086,49.53457188,3746.7,3745.9,0.001]
[1753561533087,34.03221414,3746.0,3745.9,0.001]
[1753561533286,34.03221414,3746.0,3745.8,1e-08]
[1753561533287,5.66958541,3745.9,3745.8,1e-08]
[1753561533585,37.40488541,3745.9,3745.8,1e-08]
[1753561534160,37.95488541,3745.9,3745.8,1e-08]
[1753561534589,45.38428494,3745.9,3745.8,1e-08]
[1753561534809,45.49560866,3745.9,3745.8,1e-08]
[1753561535458,45.38428494,3745.9,3745.8,1e-08]
[1753561535689,45.49551927,3745.9,3745.8,1e-08]
[1753561537684,45.38428494,3745.9,3745.8,1e-08]
[1753561539798,45.51788494,3745.9,3745.8,1e-08]
[1753561541103,49.55688494,3745.9,3745.8,1e-08]
[1753561544304,44.83488541,3745.9,3745.8,1e-08]
[1753561544705,47.83488541,3745.9,3745.8,1e-08]
[1753561545008,48.38488541,3745.9,3745.8,1e-08]
[1753561545508,43.79588541,3745.9,3745.8,1e-08]
[1753561545694,14.02318541,3745.9,3745.8,1e-08]
[1753561545897,9.98318541,3745.9,3745.8,0.70710001]
[1753561546408,17.02318541,3745.9,3745.8,0.70710001]
[1753561546776,47.57318541,3745.9,3745.8,1e-08]
[1753561546978,49.32478541,3745.9,3745.8,1e-08]
[1753561547488,18.85388541,3745.9,3745.8,1e-08]
[1753561547807,49.32478541,3745.9,3745.8,1e-08]
[1753561548604,49.57316861,3745.9,3745.8,1e-08]
[1753561548788,19.57316861,3745.9,3745.8,1e-08]
[1753561548992,49.57316861,3745.9,3745.8,1e-08]
[1753561551625,3.99941308,3745.3,3745.2,0.001]
[1753561551906,17.59301308,3745.3,3745.2,0.001]
[1753561552112,48.07491308,3745.3,3745.2,0.001]
[1753561553279,18.07491308,3745.3,3745.2,0.001]
[1753561553485,48.07491308,3745.3,3745.2,0.001]
[1753561556929,48.20567951,3745.3,3745.2,0.001]
[1753561557126,18.20567951,3745.3,3745.2,0.001]
[1753561557296,36.22008437,3745.2,3744.7,0.4578]
[1753561557496,47.44308436,3745.2,3744.7,0.4578]
[1753561557706,47.92498436,3745.2,3744.7,0.4578]
[1753561559100,48.39588436,3745.2,3745.1,1e-08]
[1753561559424,48.64523809,3745.2,3745.1,1e-08]
[1753561559590,48.17433809,3745.2,3745.1,1e-08]
[1753561559795,48.64523809,3745.2,3745.1,1e-08]
[1753561560907,48.6453644,3745.2,3745.1,1e-08]
[1753561561647,48.39588436,3745.2,3745.1,1e-08]
[1753561561799,48.64545475,3745.2,3745.1,1e-08]
[1753561562915,49.46385475,3745.2,3745.1,1e-08]
[1753561563447,49.21428436,3745.2,3745.1,1e-08]
[1753561563614,49.46402648,3745.2,3745.1,1e-08]
[1753561564133,19.57548061,3745.2,3745.1,1e-08]
[1753561564426,49.57548061,3745.2,3745.1,1e-08]
[1753561565401,44.46822648,3745.2,3745.1,1e-08]
[1753561565602,44.46822648,3745.2,3745.1,0.45780001]
[1753561565603,43.09982648,3745.2,3745.1,0.45780001]
[1753561565801,47.14182648,3745.2,3745.1,0.70710001]
[1753561566224,47.69182648,3745.2,3745.1,0.70710001]
[1753561566426,47.69282648,3745.2,3745.1,0.45780001]
[1753561566834,47.69382648,3745.2,3745.1,0.45780001]
[1753561567348,17.69382648,3745.2,3745.1,0.45780001]
[1753561567550,47.8052678,3745.2,3745.1,0.45780001]
[1753561567710,47.8052678,3745.2,3745.1,1e-08]
[1753561568544,47.69382648,3745.2,3745.1,1e-08]
[1753561569348,47.69376551,3745.2,3745.1,1e-08]
[1753561569658,43.64976551,3745.2,3745.1,1e-08]
[1753561569807,17.69276551,3745.2,3745.1,1e-08]
[1753561570008,13.40008436,3745.2,3745.1,0.70710001]
[1753561570208,17.44308436,3745.2,3745.1,0.70710001]
[1753561570637,13.40008436,3745.2,3745.1,0.70710001]
[1753561570833,17.44308436,3745.2,3745.1,0.70710001]
[1753561571041,12.85008436,3745.2,3745.1,0.70710001]
[1753561571213,12.85008436,3745.2,3745.1,1.63757001]
[1753561571214,13.89508436,3745.2,3745.1,1.63757001]
[1753561571606,6.71508437,3745.2,3745.1,1.48870001]
[1753561571807,9.71508437,3745.2,3745.1,1.48870001]